bitfinex/quotes_BTCUSD_20250723
["timestamp","ask_amount","ask_price","bid_price","bid_amount"]
[1753249504749,1.25016052,118730.0,118700.0,0.0034]
[1753249505113,0.48986545,118700.0,118690.0,0.0307]
[1753249505255,0.40784276,118700.0,118690.0,0.03293302]
[1753249505639,0.69164591,118700.0,118690.0,0.03293302]
[1753249505909,0.71693591,118700.0,118690.0,0.03293302]
[1753249506313,0.71892591,118700.0,118690.0,0.03293302]
[1753249506666,0.71992591,118700.0,118690.0,0.03793302]
[1753249507109,0.72310591,118700.0,118690.0,0.03793302]
[1753249507253,0.72410591,118700.0,118690.0,0.03793302]
[1753249510922,0.44030276,118700.0,118690.0,0.03793302]
[1753249511126,0.72410591,118700.0,118690.0,0.03793302]
[1753249512265,1.12410591,118700.0,118690.0,0.03793302]
[1753249513284,0.72410591,118700.0,118690.0,0.03793302]
[1753249513929,0.72410591,118700.0,118690.0,0.02293302]
[1753249515911,0.72410591,118700.0,118690.0,0.02078302]
[1753249517738,0.44030276,118700.0,118690.0,0.02078302]
[1753249518188,0.72410591,118700.0,118690.0,0.02293302]
[1753249518366,0.72410591,118700.0,118690.0,0.02078302]
[1753249521745,0.44030276,118700.0,118690.0,0.02078302]
[1753249521979,0.72410591,118700.0,118690.0,0.02078302]
[1753249532100,0.44030276,118700.0,118690.0,0.02078302]
[1753249532301,0.72410591,118700.0,118690.0,0.02291302]
[1753249532532,0.41826714,118700.0,118690.0,0.21867444]
[1753249532793,0.27181812,118700.0,118690.0,0.04174302]
[1753249533030,0.67181812,118700.0,118690.0,0.21867444]
[1753249533249,0.68084276,118700.0,118690.0,0.04174302]
[1753249534136,1.09364591,118700.0,118690.0,0.02291302]
[1753249534357,0.80984276,118700.0,118690.0,0.03791302]
[1753249534566,0.40984276,118700.0,118690.0,0.03791302]
[1753249536352,0.28084276,118700.0,118690.0,0.04084302]
[1753249537905,0.28084276,118700.0,118690.0,0.03791302]
[1753249540105,0.56464591,118700.0,118690.0,0.03791302]
[1753249540316,0.28084276,118700.0,118690.0,0.03791302]
[1753249542586,0.68084276,118700.0,118690.0,0.03791302]
[1753249546947,0.70661623,118700.0,118690.0,0.03791302]
[1753249548671,0.99041938,118700.0,118690.0,0.03791302]
[1753249549427,0.99564938,118700.0,118690.0,0.03791302]
[1753249553630,0.99564938,118700.0,118690.0,0.02291302]
[1753249554944,0.99564938,118700.0,118690.0,0.00548302]
[1753249555170,1.12480938,118700.0,118690.0,0.00548302]
[1753249555631,1.12259938,118700.0,118690.0,0.00548302]
[1753249556318,1.12259938,118700.0,118680.0,0.02556041]
[1753249556319,0.56598037,118690.0,118680.0,0.02556041]
[1753249556538,1.06346082,118690.0,118680.0,0.02564344]
[1753249556763,1.06844082,118690.0,118680.0,0.02564344]
[1753249556971,0.78463767,118690.0,118680.0,0.02564344]
[1753249557178,1.06844082,118690.0,118680.0,0.02564344]
[1753249558097,1.09373482,118690.0,118680.0,0.02364344]
[1753249560563,1.07773482,118690.0,118680.0,0.02364344]
[1753249561170,1.08073482,118690.0,118680.0,0.02464344]
[1753249561419,1.09753482,118690.0,118680.0,0.02464344]
[1753249563009,0.95253482,118690.0,118680.0,0.02464344]
[1753249563437,0.93693482,118690.0,118680.0,0.02464344]
[1753249563634,1.06609482,118690.0,118680.0,0.02464344]
[1753249564049,1.06609482,118690.0,118680.0,0.05735344]
[1753249564050,0.63912774,118690.0,118680.0,0.05735344]
[1753249564253,0.74303374,118690.0,118680.0,0.05735344]
[1753249564452,0.74303374,118690.0,118680.0,0.06032344]
[1753249564453,0.27383374,118690.0,118680.0,0.06032344]
[1753249564847,0.25698349,118690.0,118680.0,0.22884383]
[1753249565064,0.29068378,118690.0,118680.0,0.52949865]
[1753249565302,0.29068378,118690.0,118680.0,0.2456955]
[1753249565506,0.29068378,118690.0,118680.0,0.25412116]
[1753249565872,0.28668378,118690.0,118680.0,0.25312116]
[1753249566206,0.28868378,118690.0,118680.0,0.25412116]
[1753249566429,0.28868378,118690.0,118680.0,0.26254675]
[1753249566636,0.12017759,118690.0,118680.0,0.26254668]
[1753249566855,0.28868378,118690.0,118680.0,0.26254668]
[1753249567055,0.12017745,118690.0,118680.0,0.26254668]
[1753249567697,0.0864773,118690.0,118680.0,0.26254668]
[1753249567895,0.0864773,118690.0,118680.0,0.54634983]
[1753249568276,0.09490197,118690.0,118680.0,0.54634983]
[1753249568502,0.0864773,118690.0,118680.0,0.54634983]
[1753249569155,0.002,118690.0,118680.0,0.83015298]
[1753249569394,0.002,118690.0,118680.0,1.17015298]
[1753249570483,0.01684671,118710.0,118700.0,0.19376492]
[1753249570701,0.10132401,118710.0,118700.0,0.64051807]
[1753249570916,0.10132401,118710.0,118700.0,0.64348807]
[1753249571131,0.09290062,118710.0,118700.0,0.64348807]
[1753249571772,0.0854773,118710.0,118700.0,0.64548807]
[1753249572011,0.0864773,118710.0,118700.0,0.64648807]
[1753249572246,0.002,118710.0,118700.0,0.64648807]
[1753249575963,0.002,118710.0,118700.0,0.98648807]
[1753249578199,0.002,118710.0,118700.0,0.99479623]
[1753249579885,0.002,118710.0,118700.0,1.19695623]
[1753249580740,0.001,118710.0,118700.0,1.19495623]
[1753249580942,0.003,118730.0,118720.0,0.19373228]
[1753249581153,0.0874773,118730.0,118720.0,0.64152543]
[1753249581580,0.0874773,118730.0,118720.0,0.64449543]
[1753249581825,0.09589913,118730.0,118720.0,0.64449543]
[1753249582268,0.10532117,118730.0,118720.0,0.64749543]
[1753249582461,0.1063211,118730.0,118720.0,0.65049543]
[1753249583308,0.11474314,118730.0,118720.0,0.65049543]
[1753249583746,0.1063211,118730.0,118720.0,0.65049543]
[1753249584393,0.11474342,118730.0,118720.0,0.52061543]
[1753249584590,0.11474335,118730.0,118720.0,0.65041543]
[1753249585433,0.12316567,118730.0,118720.0,0.52061543]
[1753249585687,0.29161509,118730.0,118720.0,0.65037543]
[1753249586128,0.11474335,118730.0,118720.0,0.65879818]
[1753249586575,0.12316567,118730.0,118720.0,0.65879818]
[1753249586816,0.29161509,118730.0,118720.0,0.65879818]
[1753249587038,0.30003813,118730.0,118720.0,0.6503755]
[1753249587264,0.28319391,118730.0,118720.0,0.64195282]
[1753249587488,0.27477159,118730.0,118720.0,0.65879853]
[1753249587714,0.2747713,118730.0,118720.0,0.66722121]
[1753249588358,0.10632145,118730.0,118720.0,0.66722121]
[1753249588667,0.11474377,118730.0,118720.0,0.66722121]
[1753249588880,0.10632145,118730.0,118720.0,0.66722121]
[1753249589692,0.0894773,118730.0,118720.0,0.66722121]
[1753249589910,0.005,118730.0,118720.0,0.66722121]
[1753249590528,0.0134219,118730.0,118720.0,0.66722121]
[1753249590845,0.01342183,118730.0,118720.0,0.66722121]
[1753249591715,0.0218438,118730.0,118720.0,0.66722121]
[1753249593151,0.01342183,118730.0,118720.0,0.66722121]
[1753249593342,0.02184373,118730.0,118720.0,0.66722121]
[1753249593542,0.02184373,118730.0,118720.0,0.38341806]
[1753249593775,0.01342183,118730.0,118720.0,0.66722121]
[1753249593992,0.02184373,118730.0,118720.0,0.66722121]
[1753249594211,0.005,118730.0,118720.0,0.66722121]
[1753249594437,0.005,118730.0,118720.0,1.00722121]
[1753249597863,0.005,118730.0,118720.0,1.29102436]
[1753249599400,0.005,118730.0,118720.0,0.87746121]
[1753249599626,0.005,118730.0,118720.0,1.00706121]
[1753249602279,0.005,118730.0,118720.0,1.00698121]
[1753249607941,0.005,118730.0,118720.0,1.29078436]
[1753249608140,0.005,118730.0,118720.0,1.00698121]
[1753249608542,0.005,118730.0,118720.0,1.29078436]
[1753249609121,0.005,118730.0,118720.0,1.00698121]
[1753249610515,0.005,118730.0,118720.0,1.29078436]
[1753249612710,0.004,118730.0,118720.0,1.28778436]
[1753249612933,0.003,118730.0,118720.0,1.28478436]
[1753249613151,0.005,118730.0,118720.0,1.29578436]
[1753249616282,0.005,118730.0,118720.0,1.16626436]
[1753249616490,0.005,118730.0,118720.0,1.29558436]
[1753249627761,1e-08,118730.0,118720.0,1.29558436]
[1753249629236,1e-08,118730.0,118720.0,1.48006166]
[1753249637026,1e-08,118730.0,118720.0,1.49751068]
[1753249637571,1e-08,118730.0,118720.0,1.52277568]
[1753249643444,1e-08,118730.0,118720.0,1.80657883]
[1753249644670,1e-08,118730.0,118720.0,1.52277568]
[1753249647208,1e-08,118730.0,118720.0,1.39345568]
[1753249647414,1e-08,118730.0,118720.0,1.72517568]
[1753249648435,1e-08,118730.0,118720.0,1.81375568]
[1753249648637,1e-08,118730.0,118720.0,1.72517568]
[1753249649287,1e-08,118730.0,118720.0,1.57800666]
[1753249649495,1e-08,118730.0,118720.0,1.70764666]
[1753249650154,1e-08,118730.0,118720.0,1.69214666]
[1753249651974,1e-08,118730.0,118720.0,1.70774666]
[1753249656541,1e-08,118730.0,118720.0,1.68248166]
[1753249658025,1e-08,118730.0,118720.0,1.11487536]
[1753249658242,1e-08,118730.0,118720.0,1.68248166]
[1753249663644,1e-08,118730.0,118720.0,1.66688166]
[1753249663945,1e-08,118730.0,118720.0,1.66391166]
[1753249664179,1e-08,118730.0,118720.0,1.64731166]
[1753249665695,1e-08,118730.0,118720.0,1.51767166]
[1753249665907,0.03737001,118730.0,118720.0,1.64522166]
[1753249666355,0.03737001,118730.0,118720.0,1.36141851]
[1753249666571,0.03737001,118730.0,118720.0,1.64522166]
[1753249667985,0.02147001,118730.0,118720.0,1.64522166]
[1753249668435,0.03737001,118730.0,118720.0,1.64522166]
[1753249670716,0.02147001,118730.0,118720.0,1.64522166]
[1753249671028,0.02147001,118730.0,118720.0,1.64733166]
[1753249673048,0.00517001,118730.0,118720.0,1.64733166]
[1753249673263,0.00202001,118730.0,118720.0,1.64733166]
[1753249674537,0.03605001,118730.0,118720.0,0.22157806]
[1753249674771,0.04447184,118730.0,118720.0,0.35101806]
[1753249674977,0.05289381,118730.0,118720.0,0.97482121]
[1753249675192,0.06131613,118730.0,118720.0,0.84538121]
[1753249675402,0.05289388,118730.0,118720.0,0.97486121]
[1753249675792,0.03605001,118730.0,118720.0,0.97486121]
[1753249676262,0.03605001,118730.0,118720.0,0.84538121]
[1753249676491,0.03605001,118730.0,118720.0,0.97486121]
[1753249676705,0.03605001,118730.0,118720.0,0.96886121]
[1753249677325,0.03705001,118730.0,118720.0,0.97086121]
[1753249677755,0.03705,118730.0,118720.0,0.96586121]
[1753249680807,0.03705,118730.0,118720.0,1.24966436]
[1753249682451,0.0454719,118730.0,118720.0,0.55257806]
[1753249682806,0.30682129,118730.0,118720.0,0.1314]
[1753249683024,0.29839904,118730.0,118720.0,0.1314]
[1753249683253,0.30672337,118730.0,118720.0,0.13144]
[1753249683468,0.29839904,118730.0,118720.0,0.13144]
[1753249683723,0.12994962,118730.0,118720.0,0.32727807]
[1753249683928,0.12994962,118730.0,118720.0,0.32517228]
[1753249684186,0.31624362,118730.0,118720.0,0.32813242]
[1753249685068,0.31624362,118730.0,118720.0,0.3197096]
[1753249685283,0.30782151,118730.0,118720.0,0.3197096]
[1753249685475,0.29097672,118730.0,118720.0,0.1344]
[1753249685938,0.29097672,118730.0,118720.0,0.31128664]
[1753249686227,0.29097672,118730.0,118720.0,0.31970953]
[1753249686695,0.29097672,118730.0,118720.0,0.31966953]
[1753249687126,0.29939904,118730.0,118720.0,0.32809235]
[1753249687348,0.29939904,118730.0,118720.0,0.19873235]
[1753249687563,0.29939904,118730.0,118720.0,0.32809235]
[1753249689995,0.29939904,118730.0,118720.0,0.32801235]
[1753249690815,0.29939904,118730.0,118720.0,0.3195896]
[1753249691879,0.13937173,118730.0,118720.0,0.33643517]
[1753249692100,0.44709413,118730.0,118720.0,0.33643517]
[1753249692298,0.61554355,118730.0,118720.0,0.33643517]
[1753249692516,0.62396602,118730.0,118720.0,0.33643517]
[1753249692762,0.44709413,118730.0,118720.0,0.33643517]
[1753249693095,0.44709413,118730.0,118720.0,0.62023832]
[1753249693316,0.61554355,118730.0,118720.0,0.62023832]
[1753249693987,0.44709356,118730.0,118720.0,0.62023832]
[1753249694400,0.43867131,118730.0,118720.0,0.62023832]
[1753249694635,0.4218273,118730.0,118720.0,0.62023832]
[1753249698154,0.33735,118730.0,118720.0,0.62023832]
[1753249698575,0.33735,118730.0,118720.0,0.49095832]
[1753249698812,0.33735,118730.0,118720.0,0.62015832]
[1753249702777,0.002,118730.0,118720.0,1.28139147]
[1753249707456,0.002,118730.0,118720.0,1.26236147]
[1753249710206,0.00401,118730.0,118720.0,1.24606147]
[1753249710859,0.00401,118730.0,118720.0,1.26146147]
[1753249711066,0.002,118730.0,118720.0,1.26146147]
[1753249713530,0.002,118730.0,118720.0,0.69385517]
[1753249713750,0.002,118730.0,118720.0,1.27984147]
[1753249716821,0.002,118730.0,118720.0,1.26464147]
[1753249716998,0.002,118730.0,118720.0,1.26146147]
[1753249718129,0.002,118730.0,118720.0,1.27776147]
[1753249718533,0.002,118730.0,118720.0,1.28094147]
[1753249719941,0.002,118730.0,118720.0,1.26464147]
[1753249720150,0.002,118730.0,118720.0,1.26146147]
[1753249737208,0.002,118730.0,118720.0,1.0128383]
[1753249738758,0.002,118730.0,118720.0,1.33182143]
[1753249740763,0.002,118730.0,118720.0,1.33501143]
[1753249742366,1e-08,118730.0,118720.0,1.48548873]
[1753249742613,1e-08,118730.0,118720.0,1.53548873]
[1753249743131,1e-08,118730.0,118720.0,1.40628873]
[1753249743343,1e-08,118730.0,118720.0,1.53544873]
[1753249743778,0.00619,118750.0,118740.0,0.53369965]
[1753249743993,0.03903403,118750.0,118740.0,1.30082591]
[1753249744792,0.03903403,118750.0,118740.0,1.30282591]
[1753249745156,0.02343403,118750.0,118740.0,1.30495591]
[1753249745295,0.02343403,118750.0,118740.0,1.15251234]
[1753249746863,0.02443403,118750.0,118740.0,1.15551234]
[1753249747079,0.02443403,118750.0,118740.0,0.87202965]
[1753249747266,0.02443403,118750.0,118740.0,1.15551234]
[1753249750319,0.00943403,118750.0,118740.0,1.15551234]
[1753249750679,0.02493403,118750.0,118740.0,1.02422234]
[1753249750893,0.04053403,118750.0,118740.0,1.15334234]
[1753249752690,0.02493403,118750.0,118740.0,1.15334234]
[1753249754592,0.02493403,118750.0,118740.0,1.15547234]
[1753249755838,0.02493403,118750.0,118740.0,1.15334234]
[1753249756054,0.04013403,118750.0,118740.0,1.15334234]
[1753249758821,0.02493403,118750.0,118740.0,1.15334234]
[1753249759807,0.07511666,118750.0,118740.0,0.74073965]
[1753249759993,0.33643606,118750.0,118740.0,0.86981979]
[1753249760195,0.15959396,118750.0,118740.0,0.87824105]
[1753249761211,0.15117305,118750.0,118740.0,0.87824105]
[1753249761642,0.15959388,118750.0,118740.0,1.16172374]
[1753249761850,0.16801472,118750.0,118740.0,1.16172374]
[1753249762344,0.15959381,118750.0,118740.0,1.16172374]
[1753249763302,0.14275236,118750.0,118740.0,1.16172374]
[1753249763524,0.15117305,118750.0,118740.0,1.16172374]
[1753249763940,0.15959388,118750.0,118740.0,1.16172374]
[1753249764149,0.15117305,118750.0,118740.0,1.16172374]
[1753249764364,0.13433174,118750.0,118740.0,1.16172374]
[1753249764576,0.14275229,118750.0,118740.0,1.16172374]
[1753249765264,0.15117291,118750.0,118740.0,1.16172374]
[1753249766242,0.32801543,118750.0,118740.0,1.14488093]
[1753249766443,0.32801543,118750.0,118740.0,1.15330219]
[1753249766444,0.15959424,118750.0,118740.0,1.15330219]
[1753249766648,0.15117333,118750.0,118740.0,1.15330219]
[1753249767074,0.1427525,118750.0,118740.0,1.15330219]
[1753249768404,0.13433188,118750.0,118740.0,1.15330219]
[1753249768605,0.13433181,118750.0,118740.0,1.15330219]
[1753249769148,0.13433174,118750.0,118740.0,1.15330219]
[1753249769300,0.13433174,118750.0,118740.0,0.98676126]
[1753249769884,0.13433174,118750.0,118740.0,1.30574302]
[1753249770083,0.14275229,118750.0,118740.0,1.30574302]
[1753249770292,0.13433174,118750.0,118740.0,1.30574302]
[1753249770506,0.12591133,118750.0,118740.0,1.30574302]
[1753249771611,0.13433181,118750.0,118740.0,1.30574302]
[1753249771735,0.13433174,118750.0,118740.0,1.30574302]
[1753249773484,0.12591133,118750.0,118740.0,1.30574302]
[1753249775513,0.13433174,118750.0,118740.0,1.30574302]
[1753249776389,0.12591133,118750.0,118740.0,1.30574302]
[1753249779054,0.12591133,118750.0,118740.0,0.6677795]
[1753249779285,0.12591133,118750.0,118740.0,1.30574302]
[1753249781434,0.13433181,118750.0,118740.0,1.30574302]
[1753249781638,0.12591133,118750.0,118740.0,1.30574302]
[1753249787478,0.13433174,118750.0,118740.0,1.30574302]
[1753249787671,0.12591133,118750.0,118740.0,1.30574302]
[1753249787902,0.13433181,118750.0,118740.0,1.30574302]
[1753249788697,0.13433181,118750.0,118740.0,0.98676126]
[1753249789214,0.12591133,118750.0,118740.0,0.98676126]
[1753249790288,0.12591133,118750.0,118740.0,1.30574302]
[1753249790720,0.09391133,118750.0,118740.0,1.30790302]
[1753249791824,0.10911133,118750.0,118740.0,1.30790302]
[1753249794005,0.11753181,118750.0,118740.0,1.30790302]
[1753249794430,0.11753174,118750.0,118740.0,1.30790302]
[1753249796843,0.11753174,118750.0,118740.0,1.30574302]
[1753249797538,0.10911133,118750.0,118740.0,1.30574302]
[1753249797744,0.11753174,118750.0,118740.0,1.30574302]
[1753249799435,0.10911133,118750.0,118740.0,1.30574302]
[1753249799641,0.10911133,118750.0,118740.0,1.30772302]
[1753249802889,0.10911133,118750.0,118740.0,0.6697595]
[1753249803104,0.09391133,118750.0,118740.0,1.30772302]
[1753249803399,0.08860133,118750.0,118740.0,1.31068302]
[1753249803531,0.00412403,118750.0,118740.0,1.34278302]
[1753249804760,0.00412403,118750.0,118740.0,1.21370302]
[1753249804949,0.00412403,118750.0,118740.0,1.32670302]
[1753249805378,0.00412403,118750.0,118740.0,1.34170302]
[1753249808980,0.00412403,118750.0,118740.0,1.54374302]
[1753249812145,0.00412403,118750.0,118740.0,1.52874302]
[1753249812376,0.00412403,118750.0,118740.0,1.52578302]
[1753249813072,0.00412403,118750.0,118740.0,1.53430058]
[1753249814476,0.00412403,118750.0,118740.0,1.40530058]
[1753249814692,0.11035236,118750.0,118740.0,1.05972126]
[1753249814911,0.14215236,118750.0,118740.0,1.18868126]
[1753249815137,0.14215236,118750.0,118740.0,1.05972126]
[1753249815354,0.14215236,118750.0,118740.0,1.18868126]
[1753249816466,0.15057312,118750.0,118740.0,1.18868126]
[1753249816746,0.14215236,118750.0,118740.0,1.18868126]
[1753249817663,0.15057305,118750.0,118740.0,1.18868126]
[1753249818123,0.14215236,118750.0,118740.0,1.18868126]
[1753249818367,0.14215229,118750.0,118740.0,1.18868126]
[1753249818597,0.30215293,118750.0,118740.0,0.71547523]
[1753249818820,0.32741543,118750.0,118740.0,1.1718386]
[1753249819058,0.31899488,118750.0,118740.0,1.17183875]
[1753249819278,0.60987426,118750.0,118740.0,1.00340352]
[1753249819499,0.60145343,118750.0,118740.0,1.00340352]
[1753249819730,0.60145343,118750.0,118740.0,0.336]
[1753249820185,0.92043519,118750.0,118740.0,0.336]
[1753249820404,0.60145343,118750.0,118740.0,0.336]
[1753249820637,0.93788421,118750.0,118740.0,0.20704]
[1753249820849,0.61890245,118750.0,118740.0,0.336]
[1753249821075,0.64417845,118750.0,118740.0,0.336]
[1753249821840,0.64317845,118750.0,118740.0,0.333]
[1753249822175,0.64417845,118750.0,118740.0,0.333]
[1753249822391,0.70417845,118750.0,118740.0,0.333]
[1753249823319,0.70417845,118750.0,118740.0,0.13096]
[1753249824129,0.70417845,118750.0,118740.0,0.12896]
[1753249824552,0.70517845,118750.0,118740.0,0.12896]
[1753249825111,0.40587845,118750.0,118740.0,0.12896]
[1753249833335,0.72486021,118750.0,118740.0,0.12896]
[1753249833847,0.40587845,118750.0,118740.0,0.12896]
[1753249834571,0.16846361,118720.0,118710.0,0.41205201]
[1753249834781,0.25818091,118720.0,118710.0,0.99192176]
[1753249834989,0.25818091,118720.0,118710.0,0.98994176]
[1753249835866,0.25818091,118720.0,118710.0,0.67096]
[1753249836069,0.25818091,118720.0,118710.0,0.33096]
[1753249836070,0.29078091,118720.0,118710.0,0.33096]
[1753249836263,0.59008091,118720.0,118710.0,0.33096]
[1753249836424,0.59851603,118720.0,118710.0,0.33096]
[1753249836608,0.59851603,118720.0,118710.0,0.64994176]
[1753249836827,0.59951603,118720.0,118710.0,0.65694176]
[1753249837249,0.59951603,118720.0,118710.0,0.33796]
[1753249837873,0.59851603,118720.0,118710.0,0.33096]
[1753249838468,0.59951603,118720.0,118710.0,0.33396]
[1753249839064,0.59951603,118720.0,118710.0,0.20504]
[1753249839302,0.59951603,118720.0,118710.0,0.33396]
[1753249839915,0.30021603,118720.0,118710.0,0.33396]
[1753249845653,0.34294605,118720.0,118710.0,0.33396]
[1753249846476,0.34294605,118720.0,118710.0,0.13192]
[1753249847423,0.34294605,118720.0,118710.0,0.13092]
[1753249849440,0.74294605,118720.0,118710.0,0.13092]
[1753249849608,0.74194605,118720.0,118710.0,0.12892]
[1753249850399,0.74194605,118720.0,118710.0,0.13092]
[1753249850600,0.74294605,118720.0,118710.0,0.13092]
[1753249851247,1.0266894,118720.0,118710.0,0.13092]
[1753249851863,0.74294605,118720.0,118710.0,0.13092]
[1753249852539,0.34294605,118720.0,118710.0,0.13092]
[1753249856598,0.74294605,118720.0,118710.0,0.13092]
[1753249858028,0.80294605,118720.0,118710.0,0.13092]
[1753249860925,1.0866894,118720.0,118710.0,0.13092]
[1753249861207,0.80294605,118720.0,118710.0,0.13092]
[1753249861407,0.75667093,118720.0,118710.0,0.13301]
[1753249861622,0.75667093,118720.0,118710.0,0.43245335]
[1753249861623,0.17918126,118720.0,118710.0,0.43245335]
[1753249861824,0.19602655,118720.0,118710.0,0.65446556]
[1753249862044,0.38133623,118720.0,118710.0,0.65446556]
[1753249862254,0.36449094,118720.0,118710.0,0.35387536]
[1753249862515,0.36449094,118720.0,118710.0,0.63761871]
[1753249862944,0.36449094,118720.0,118710.0,0.35387536]
[1753249863146,0.36449094,118720.0,118710.0,0.63761871]
[1753249863986,0.36449094,118720.0,118710.0,0.64604231]
[1753249864396,0.18760366,118720.0,118710.0,0.6544657]
[1753249865042,0.37291312,118720.0,118710.0,0.33403536]
[1753249865263,0.37291312,118720.0,118710.0,0.34245896]
[1753249866792,0.34763212,118720.0,118710.0,0.34245896]
[1753249867229,0.33920951,118720.0,118710.0,0.33403536]
[1753249867639,0.33920951,118720.0,118710.0,0.34245896]
[1753249867947,0.33920951,118720.0,118710.0,0.33403536]
[1753249868164,0.33920951,118720.0,118710.0,0.34245896]
[1753249868478,0.34763269,118720.0,118710.0,0.35088249]
[1753249868692,0.34763269,118720.0,118710.0,0.33403536]
[1753249868929,0.33920994,118720.0,118710.0,0.3340355]
[1753249870000,0.33078712,118720.0,118710.0,0.3340355]
[1753249872512,0.32236409,118720.0,118710.0,0.14871]
[1753249872923,0.32442409,118720.0,118710.0,0.14871]
[1753249873346,0.32442409,118720.0,118710.0,0.3171878]
[1753249875965,0.32442409,118720.0,118710.0,0.32561169]
[1753249877327,0.32442409,118720.0,118710.0,0.47633107]
[1753249878378,0.32442409,118720.0,118710.0,0.46790718]
[1753249879397,0.32442409,118720.0,118710.0,0.63638498]
[1753249880542,0.32442409,118720.0,118710.0,0.46790718]
[1753249881352,0.67919029,118720.0,118710.0,0.002]
[1753249881578,0.69549029,118720.0,118710.0,0.1308]
[1753249881984,0.69549029,118720.0,118710.0,0.002]
[1753249882185,0.69549029,118720.0,118710.0,0.1308]
[1753249882841,0.37629311,118720.0,118710.0,0.002]
[1753249883046,0.37629311,118720.0,118710.0,0.1308]
[1753249883047,0.69549029,118720.0,118710.0,0.1308]
[1753249883257,0.37629311,118720.0,118710.0,0.1308]
[1753249883613,0.35999311,118720.0,118710.0,0.1308]
[1753249884669,0.34499311,118720.0,118710.0,0.1308]
[1753249887014,0.34499311,118720.0,118710.0,0.3161255]
[1753249887656,0.34499311,118720.0,118710.0,0.13922389]
[1753249887853,0.34499311,118720.0,118710.0,0.30770169]
[1753249888055,0.34499311,118720.0,118710.0,0.32454924]
[1753249888516,0.34499311,118720.0,118710.0,0.3161255]
[1753249888736,0.33656993,118720.0,118710.0,0.13283]
[1753249888916,0.33656993,118720.0,118710.0,0.14913]
[1753249889143,0.33656993,118720.0,118710.0,0.3176078]
[1753249889581,0.33344993,118720.0,118710.0,0.33445528]
[1753249890217,0.33639993,118720.0,118710.0,0.32599161]
[1753249890913,0.33639993,118720.0,118710.0,0.33441535]
[1753249891651,0.35324578,118720.0,118710.0,0.34283895]
[1753249892192,0.34823578,118720.0,118710.0,0.34283895]
[1753249892685,0.34823578,118720.0,118710.0,0.35923895]
[1753249893165,0.34823578,118720.0,118710.0,0.34283895]
[1753249893366,0.34823578,118720.0,118710.0,0.33441535]
[1753249893548,0.33981296,118720.0,118710.0,0.33441535]
[1753249893767,0.33643993,118720.0,118710.0,0.3012678]
[1753249893928,0.33643993,118720.0,118710.0,0.13279]
[1753249894126,0.33643993,118720.0,118710.0,0.13076]
[1753249896671,0.33643993,118720.0,118710.0,0.2992378]
[1753249897079,0.33643993,118720.0,118710.0,0.30766169]
[1753249898339,0.33643993,118720.0,118710.0,0.31608536]
[1753249898511,0.33643993,118720.0,118710.0,0.33441536]
[1753249898750,0.35328592,118720.0,118710.0,0.34283889]
[1753249899000,0.16232294,118720.0,118710.0,0.65334354]
[1753249899166,0.16442037,118720.0,118710.0,0.65334354]
[1753249899671,0.17284298,118720.0,118710.0,0.65334354]
[1753249899913,0.16442016,118720.0,118710.0,0.65334354]
[1753249900088,0.17284305,118720.0,118710.0,0.65334354]
[1753249901981,0.16442016,118720.0,118710.0,0.65334354]
[1753249902176,0.17284305,118720.0,118710.0,0.65334354]
[1753249902390,0.18126601,118720.0,118710.0,0.65334354]
[1753249902593,0.17916858,118720.0,118710.0,0.65334354]
[1753249902993,0.18759161,118720.0,118710.0,0.65334354]
[1753249905729,0.17916858,118720.0,118710.0,0.65334354]
[1753249907256,0.17916858,118720.0,118710.0,0.68872926]
[1753249907488,0.18759161,118720.0,118710.0,0.68872926]
[1753249908866,0.18759161,118720.0,118710.0,0.68563926]
[1753249912912,0.17074562,118720.0,118710.0,0.68563926]
[1753249913069,0.15389998,118720.0,118710.0,1.00780624]
[1753249914034,0.16232273,118720.0,118710.0,1.00780624]
[1753249914240,0.17074562,118720.0,118710.0,0.68862926]
[1753249914463,0.16232273,118720.0,118710.0,0.68862926]
[1753249915499,0.17074555,118720.0,118710.0,0.68862926]
[1753249915735,0.15389998,118720.0,118710.0,0.68862926]
[1753249916265,0.16232287,118720.0,118710.0,0.68862926]
[1753249916923,0.1623228,118720.0,118710.0,0.68862926]
[1753249917370,0.1454773,118720.0,118710.0,0.65314926]
[1753249917542,0.15389991,118720.0,118710.0,0.65314926]
[1753249918679,0.15389991,118720.0,118710.0,0.36945228]
[1753249918875,0.16232266,118720.0,118710.0,0.65314926]
[1753249919014,0.15389991,118720.0,118710.0,0.65314926]
[1753249919725,0.16232266,118720.0,118710.0,0.65314926]
[1753249919907,0.15389991,118720.0,118710.0,0.65314926]
[1753249920721,0.16232273,118720.0,118710.0,0.65314926]
[1753249920874,0.16232273,118720.0,118710.0,0.36945228]
[1753249921076,0.16232273,118720.0,118710.0,0.65314926]
[1753249921557,0.16232273,118720.0,118710.0,0.65005926]
[1753249922923,0.17074576,118720.0,118710.0,0.63495926]
[1753249923102,0.17074569,118720.0,118710.0,0.63495926]
[1753249928336,0.17074569,118720.0,118710.0,0.35126228]
[1753249928643,0.17916872,118720.0,118710.0,0.63495926]
[1753249929482,0.17916872,118720.0,118710.0,0.35126228]
[1753249929689,0.18966182,118720.0,118710.0,0.63495926]
[1753249929897,0.18423872,118720.0,118710.0,0.61865926]
[1753249930869,0.17581569,118720.0,118710.0,0.61865926]
[1753249931995,0.18423872,118720.0,118710.0,0.61865926]
[1753249934007,0.17916872,118720.0,118710.0,0.61865926]
[1753249934240,0.17916872,118720.0,118710.0,0.63435926]
[1753249936452,0.17074569,118720.0,118710.0,0.63435926]
[1753249936908,0.17284312,118720.0,118710.0,0.63435926]
[1753249937119,0.16442016,118720.0,118710.0,0.35066228]
[1753249937320,0.16442016,118720.0,118710.0,0.66983362]
[1753249937727,0.16232273,118720.0,118710.0,0.66983362]
[1753249938149,0.17074569,118720.0,118710.0,0.66983362]
[1753249938733,0.16232273,118720.0,118710.0,0.66983362]
[1753249938940,0.17074569,118720.0,118710.0,0.66983362]
[1753249939439,0.16232273,118720.0,118710.0,0.66983362]
[1753249940312,0.15389984,118720.0,118710.0,0.66983362]
[1753249940569,0.16232245,118720.0,118710.0,0.66983362]
[1753249940718,0.16232245,118720.0,118710.0,0.98900496]
[1753249941514,0.15389984,118720.0,118710.0,0.98900496]
[1753249941647,0.1454773,118720.0,118710.0,0.98900496]
[1753249942531,0.16232273,118720.0,118710.0,0.98900496]
[1753249942747,0.17284312,118720.0,118710.0,0.66983362]
[1753249942930,0.35479991,118720.0,118710.0,0.64571023]
[1753249943193,0.35270248,118720.0,118710.0,0.6372867]
[1753249943407,0.35270248,118720.0,118710.0,0.65413383]
[1753249943631,0.36725705,118720.0,118710.0,0.1704778]
[1753249943848,0.69545445,118720.0,118710.0,0.002]
[1753249944059,0.69545445,118720.0,118710.0,0.13056]
[1753249944778,0.37628311,118720.0,118710.0,0.13056]
[1753249946154,0.37628311,118720.0,118710.0,0.2990378]